[Event "Sardinia World Festival-A 2024"]
[Site "Orosei"]
[Date "2024.04.30"]
[Round "5.37"]
[White "Urbani, Gabriel"]
[Black "Favaloro, Andrea"]
[Result "1/2-1/2"]
[ECO "C68"]
[WhiteElo "2260"]
[BlackElo "2412"]
[Annotator "TA"]
[PlyCount "34"]
[EventDate "2024.04.26"]
[EventType "swiss"]
[EventCountry "ITA"]
[SourceTitle "playchess.com"]
[Source "ChessBase"]
[SourceQuality "1"]
[TimeControl "40/5400+30:1800+30"]

{[%evp 25,34,-28,-28,-22,9,0,51,37,47,33,41]} 1. e4 {[%emt 0:10:44]} e5 {[%emt 0:00:18]} 2. Nf3 {[%emt 0:00:05]} Nc6 {[%emt 0:00:14]} 3. Bb5 {[%emt 0:01:03]} a6 {[%emt 0:00:23]} 4. Bxc6 {[%emt 0:00:09]} dxc6 {[%emt 0:00:15]} 5. Nc3 {[%emt 0:00:08][%cal Bb1c3,Bc3d1,Bd1e3][%mdl 32]} f6 {[%emt 0:00:35]} 6. d4 {[%emt 0:00:04]} exd4 {[%emt 0:00:21]} 7. Nxd4 {[%emt 0:00:08]} c5 {[%emt 0:00:30]} 8. Nde2 {[%emt 0:00:06]} Qxd1+ {[%emt 0:00:29]} 9. Nxd1 {[%emt 0:00:09]} Be6 {[%emt 1:31:55]} 10. Bf4 {[%emt 0:00:21]} O-O-O {[%emt 0:00:00]} 11. Ne3 {[%emt 0:00:16]} Ne7 {[%emt 0:00:00]} 12. Rd1 {[%emt 0:00:12]} Rxd1+ {[%emt 0:00:00]} 13. Kxd1 {[%emt 0:00:06]} g5 {[%emt 0:00:00]} (13... Bxa2 14. b3 $16) 14. Bg3 {[%emt 0:02:06]} Bg7 {[%emt 0:00:00][%cal Of6f5]} ({Weaker is} 14... Bxa2 15. b3 Bg7 (15... Bb1 $2 16. Nc3 $18) 16. Nc1 Rd8+ 17. Ke2 $18) 15. h4 {[%emt 0:02:56]} f5 {[%emt 0:00:00]} ({But not} 15... Bxa2 $6 16. b3 $16) ({Better is} 15... h5 $11) 16. hxg5 $14 {[%emt 0:21:24] And now Nf4 would win.} fxe4 {[%emt 0:00:00]} 17. b3 {[%emt 0:07:39]} Nf5 {[%emt 0:00:00] Wards off Rh4. Black did not feel at home in the position after the opening.   Weighted Error Value: White=0.05 (flawless) /Black=0.20 (precise) .  Mistake:       	---       	Black=1      Inaccurate:     	---       	Black=1      OK:         	White=1     	---        Best:        	White=1     	Black=1} 1/2-1/2

[Event "Sardinia World Festival-A 2024"]
[Site "Orosei"]
[Date "2024.04.30"]
[Round "5.38"]
[White "Shohat, Yotam"]
[Black "Kurmangaliyeva, Liya"]
[Result "1-0"]
[ECO "C88"]
[WhiteElo "2398"]
[BlackElo "2230"]
[Annotator "TA"]
[PlyCount "119"]
[EventDate "2024.04.26"]
[EventType "swiss"]
[EventCountry "ITA"]
[SourceTitle "playchess.com"]
[Source "ChessBase"]
[SourceQuality "1"]
[TimeControl "40/5400+30:1800+30"]

{[%evp 20,119,17,26,20,16,22,19,16,11,12,8,15,6,47,16,31,29,31,0,20,0,0,-14,-16,-6,-10,-8,11,11,7,-3,-4,-16,0,-10,0,0,0,0,0,0,0,0,0,0,0,0,0,-16,0,0,0,-8,20,23,22,25,31,26,33,33,53,54,59,29,42,41,65,32,55,33,52,39,62,72,119,122,119,114,102,76,81,78,269,269,262,262,262,262,254,254,254,254,254,252,527,509,920,891,918,864]} 1. e4 {[%emt 0:00:03]} e5 {[%emt 0:00:15]} 2. Nf3 {[%emt 0:00:05]} Nc6 {[%emt 0:00:07]} 3. Bb5 {[%emt 0:00:04]} a6 {[%emt 0:00:13]} 4. Ba4 {[%emt 0:00:04]} Nf6 {[%emt 0:00:12]} 5. O-O {[%emt 0:00:05]} Be7 {[%emt 0:00:10]} 6. Re1 {[%emt 0:00:06]} b5 {[%emt 0:00:15]} 7. Bb3 {[%emt 1:33:33]} O-O {[%emt 0:00:10]} 8. a4 {[%emt 0:00:00]} Bb7 {[%emt 0:00:20]} 9. d3 {[%emt 0:00:00]} d6 {[%emt 0:00:15]} 10. Nbd2 {[%emt 0:00:00][%cal Bb1d2,Bd2c4,Bc4e3,Be3d5][%mdl 32]} Nd7 {[%emt 0:00:45]} 11. c3 {[%emt 0:00:00]} Nc5 {[%emt 0:00:34]} 12. Bc2 {[%emt 0:00:00]} Nxa4 {[%emt 0:05:29]} 13. Bxa4 {[%emt 0:00:00]} bxa4 {[%emt 0:00:07] The position is equal.} 14. Qxa4 {[%emt 0:00:00]} a5 {[%emt 0:12:17]} 15. Nc4 {[%emt 0:00:00]} Qd7 {[%emt 0:06:44]} 16. Ne3 {[%emt 0:00:00]} Rfd8 {[%emt 0:05:05]} 17. Nd5 {[%emt 0:00:00]} Bf8 {[%emt 0:08:04]} 18. Bg5 {[%emt 0:00:00]} Rdb8 {[%emt 0:00:43]} 19. d4 {[%emt 0:00:00]} Ba6 {[%emt 0:08:06]} 20. dxe5 {[%emt 0:00:00]} Bb5 {[%emt 0:03:07]} 21. Qc2 {[%emt 0:00:00]} Nxe5 {[%emt 0:02:12]} 22. Nxe5 {[%emt 0:00:00]} dxe5 {[%emt 0:00:07]} 23. c4 {[%emt 0:00:00]} c6 {[%emt 0:12:23]} 24. Ne3 {[%emt 0:00:00]} Ba6 {[%emt 0:00:08]} 25. Red1 {[%emt 0:00:00]} Qc7 {[%emt 0:01:20]} 26. Nf5 {[%emt 0:00:00]} Bc8 {[%emt 0:11:28]} 27. Bd2 {[%emt 0:00:00]} Be6 {[%emt 0:01:13][%cal Oa5a4]} 28. Ra4 {[%emt 0:00:00]} Qb6 {[%emt 0:14:09]} 29. Bc3 {[%emt 0:00:00]} f6 {[%emt 0:00:29]} 30. Rda1 {[%emt 0:00:00]} Qb3 {[%emt 0:00:27]} 31. Qxb3 {[%emt 0:00:00]} Rxb3 {[%emt 0:00:05]} 32. g4 {[%emt 0:00:00]} g6 {[%emt 0:01:25]} 33. Ne3 {[%emt 0:00:00]} Bc5 {[%emt 0:00:22]} 34. g5 {[%emt 0:00:00]} fxg5 {[%emt 0:04:23]} 35. Rxa5 {[%emt 0:00:00]} Rxa5 {[%emt 0:00:04]} 36. Rxa5 {[%emt 0:00:00]} Bxe3 {[%emt 0:02:35]} 37. fxe3 {[%emt 0:00:00]} Bxc4 {[%emt 0:00:03]} 38. Rxe5 $11 {[%emt 0:00:39][%mdl 4096] Endgame. KRB-KRB} Kf7 {[%emt 0:00:14]} 39. Rxg5 {[%emt 0:00:39]} Rb5 {[%emt 0:00:31]} 40. Rg4 {[%emt 0:01:24]} Bd3 {[%emt 0:01:49]} 41. Rf4+ {[%emt 0:31:10]} Ke7 {[%emt 0:31:07]} 42. h4 {[%emt 0:07:47][%cal Bh2h4,Bh4h5][%mdl 32]} Rb8 {[%emt 0:01:13]} 43. e5 {[%emt 0:03:46]} Bf5 {[%emt 0:00:00]} 44. h5 {[%emt 0:00:00]} Ra8 {[%emt 0:00:00]} 45. h6 {[%emt 0:00:00]} Ra1+ {[%emt 0:00:00]} 46. Kh2 {[%emt 0:00:00]} Rc1 {[%emt 0:00:00]} 47. Rc4 {[%emt 0:00:00]} Kd7 {[%emt 0:00:00]} (47... Rc2+ $142 48. Kg3 Re2) 48. e4 $16 {[%emt 0:00:00]} Bg4 {[%emt 0:00:00]} 49. Ra4 {[%emt 0:00:00]} Ke7 {[%emt 0:00:00]} 50. Ra7+ {[%emt 0:00:00]} Bd7 {[%emt 0:00:00]} 51. Ra8 {[%emt 0:00:00]} Be8 $2 {[%emt 0:00:00] [#] Loses the game.} (51... Rf1 $16) 52. e6 $1 $18 {[%emt 0:00:00][%mdl 512] aiming for Ra7+.} g5 {[%emt 0:00:00][%cal Oe8g6]} (52... Rc2+ 53. Kg3) 53. Ra7+ $1 {[%emt 0:00:00]} Kxe6 {[%emt 0:00:00]} 54. Rxh7 {[%emt 0:00:00][%cal Oh7e7] Hoping for Re7+!} Bg6 {[%emt 0:00:25] [#]} 55. Rh8 {[%emt 0:00:00] h7 is the strong threat.} Rc2+ {[%emt 0:00:21] [#]} 56. Kg3 $1 {[%emt 0:00:00] Black must now prevent h7.} Rc1 {[%emt 0:00:03]} 57. Rc8 {[%emt 0:05:31]} Kd6 {[%emt 0:03:19]} (57... Kd7 {was worth a try.} 58. Rg8 Bxe4) 58. e5+ {[%emt 0:02:03][%cal Be4e5,Be5e6][%mdl 32] White is clearly winning.} Kd5 {[%emt 0:01:50]} (58... Kc5 $142 59. e6 Kd6) 59. Rd8+ {[%emt 0:00:12]} Ke4 {[%emt 0:01:56]} 60. e6 {[%emt 0:00:10] Weighted Error Value: White=0.06 (flawless) /Black=0.22 (precise) .  Loses game:     	---       	Black=1      Mistake:       	---       	Black=3      Inaccurate:     	White=4     	Black=2      OK:         	White=19    	Black=19     Best:        	White=3     	Black=3      Strong:       	White=2     	---} 1-0

[Event "Sardinia World Festival-A 2024"]
[Site "Orosei"]
[Date "2024.04.30"]
[Round "5.39"]
[White "Andreev, Konstantin"]
[Black "Savitha Shri B"]
[Result "1-0"]
[ECO "B48"]
[WhiteElo "2244"]
[BlackElo "2363"]
[Annotator "TA"]
[PlyCount "71"]
[EventDate "2024.04.26"]
[EventType "swiss"]
[EventCountry "ITA"]
[SourceTitle "playchess.com"]
[Source "ChessBase"]
[SourceQuality "1"]
[TimeControl "40/5400+30:1800+30"]

{[%evp 11,71,23,35,26,43,15,25,22,29,35,26,34,52,38,33,49,68,29,41,39,36,39,79,0,0,0,47,-12,-8,-41,43,41,35,9,12,-33,-18,-21,-8,-27,0,-35,-34,-26,-27,-41,-63,-116,-98,-113,-110,-91,-25,-79,0,0,172,75,2075,2075,2002,1979]} 1. e4 {[%emt 0:00:02]} c5 {[%emt 0:00:50]} 2. Nf3 {[%emt 0:00:20]} e6 {[%emt 0:00:30]} 3. d4 {[%emt 0:00:32]} cxd4 {[%emt 0:00:09]} 4. Nxd4 {[%emt 0:00:09]} Nc6 {[%emt 0:00:07]} 5. Nc3 {[%emt 0:00:10]} Qc7 {[%emt 0:00:21]} 6. Be3 {[%emt 0:00:06]} a6 {[%emt 0:00:06]} 7. Qf3 {[%emt 0:00:07]} b5 {[%emt 0:01:40]} 8. Nxc6 {[%emt 0:02:04]} Qxc6 {[%emt 0:00:21]} 9. Bd3 {[%emt 0:00:24] White has an edge.} Bb7 {[%emt 0:03:01][%cal Of8a3]} 10. Qg3 {[%emt 0:02:24]} Nf6 {[%emt 0:09:48]} 11. f3 {[%emt 0:02:47]} d6 {[%emt 0:01:39][%cal Bd7d6,Bd6d5][%mdl 32]} 12. O-O-O {[%emt 0:07:44]} Rc8 {[%emt 0:02:46]} 13. Kb1 {[%emt 0:00:17]} Nd7 {[%emt 0:03:37]} 14. Ne2 {[%emt 0:03:23][%cal Bc3e2,Be2d4,Bd4b3][%mdl 32] White is much more active.} Qc7 {[%emt 0:04:46]} 15. Nd4 {[%emt 0:13:54]} g6 {[%emt 0:04:00]} 16. h4 {[%emt 0:04:24][%cal Bh2h4,Bh4h5,Bh5h6][%mdl 32]} d5 {[%emt 0:03:51] [#]} 17. e5 {[%emt 0:03:08]} Qxe5 $11 {[%emt 0:14:21]} 18. f4 {[%emt 0:01:04]} Qg7 {[%emt 0:03:01]} (18... Qd6 $11 {feels stronger.}) 19. Qh3 {[%emt 0:15:18]} (19. Nb3 $14) 19... Bc5 {[%emt 0:03:29]} 20. Nb3 {[%emt 0:07:49]} Be7 {[%emt 0:10:37]} (20... Bxe3 $15 21. Qxe3 O-O) 21. h5 $14 {[%emt 0:02:15][%mdl 1024] Strongly threatening hxg6. White has compensation.} Bf6 {[%emt 0:08:18]} 22. h6 {[%emt 0:11:33]} Qf8 {[%emt 0:00:17]} 23. Bd4 {[%emt 0:00:45]} Qe7 {[%emt 0:01:41]} 24. g4 {[%emt 0:00:42]} O-O {[%emt 0:03:40]} 25. Rhe1 {[%emt 0:03:40]} Rce8 {[%emt 0:03:14]} 26. Qe3 {[%emt 0:00:35]} Bxd4 $1 {[%emt 0:00:40]} 27. Qxd4 {[%emt 0:00:45]} Qf6 {[%emt 0:01:38]} 28. Qa7 {[%emt 0:02:44]} Bc8 {[%emt 0:00:05]} 29. Qc7 {[%emt 0:01:14]} (29. Qe3 $15) 29... e5 $17 {[%emt 0:00:55]} 30. f5 {[%emt 0:00:19]} Qb6 {[%emt 0:05:36]} 31. Qc3 {[%emt 0:00:36]} g5 {[%emt 0:02:40]} ({Black should play} 31... d4 $17 32. Qd2 Bb7) 32. Bf1 {[%emt 0:02:27]} (32. Be2 $11) 32... Bb7 {[%emt 0:01:31]} (32... Qxh6 33. Rxd5 Nf6 34. Rd6 $11 (34. Rdxe5 $2 Rxe5 35. Qxe5 Nxg4 $19)) (32... d4 $17 33. Qh3 Bb7) 33. Bg2 $36 {[%emt 0:00:18][%mdl 2048] White fights for an advantage.} Nf6 {[%emt 0:02:52] [#]} (33... d4 34. Qd2 f6 35. c3 $16) (33... Qxh6 $11 34. Rh1 (34. Bxd5 Rc8 $11) 34... Qg7) 34. Rxe5 {[%emt 0:01:46]} (34. Nc5 $1 $18 {[%cal Rc5b7] is the precise move to win. Hoping for Nxb7.} Ba8 (34... Nxg4 $2 {too greedy.} 35. Nxb7 Qxb7 36. Qg3 $18) 35. Rxe5 Rxe5 (35... Nxg4 $2 {loses.} 36. Re6 $18) (35... d4 $2 36. Qd2 $18) 36. Qxe5) 34... Qf2 $2 {[%emt 0:03:01][%mdl 8192]} (34... Rxe5 $16 35. Qxe5 Re8) 35. Rexd5 $18 {[%emt 0:01:47]} Qb6 {[%emt 0:02:08]} 36. Rd6 {[%emt 0:00:25] Weighted Error Value: White=0.24 (precise) /Black=0.24 (precise) .  Loses game:     	---       	Black=2      Mistake:       	White=5     	Black=4      Inaccurate:     	White=6     	Black=2      OK:         	White=9     	Black=9      Best:        	White=2     	Black=2      Strong:       	---       	Black=1} 1-0

[Event "Sardinia World Festival-A 2024"]
[Site "Orosei"]
[Date "2024.04.30"]
[Round "5.40"]
[White "Kaczmarek, Aleksander"]
[Black "Selbes, Tamer Tarik"]
[Result "1-0"]
[ECO "C22"]
[WhiteElo "2362"]
[BlackElo "2219"]
[Annotator "TA"]
[PlyCount "51"]
[EventDate "2024.04.26"]
[EventType "swiss"]
[EventCountry "ITA"]
[SourceTitle "playchess.com"]
[Source "ChessBase"]
[SourceQuality "1"]
[TimeControl "40/5400+30:1800+30"]

{[%evp 9,51,45,47,29,27,38,30,24,29,28,111,87,133,111,109,95,137,118,209,181,272,266,290,278,346,418,410,407,456,471,567,552,569,550,718,750,689,637,939,931,904,848,29997,29998]} 1. e4 {[%emt 1:31:00]} e5 {[%emt 0:02:16]} 2. d4 {[%emt 0:00:00]} exd4 {[%emt 0:00:05]} 3. Qxd4 {[%emt 0:00:00]} Nc6 {[%emt 0:00:07]} 4. Qd3 {[%emt 0:00:00]} g6 {[%emt 0:06:09]} 5. Nc3 {[%emt 0:00:00]} Bg7 {[%emt 0:00:19]} 6. f3 {[%emt 0:00:00]} Nge7 {[%emt 0:01:23][%cal Od7d5]} 7. Bg5 {[%emt 0:00:00][%cal Bc1g5,Bg5h4,Bh4f2][%mdl 32]} h6 {[%emt 0:01:03][%cal Oc6e5] ...Ne5! would now be deadly.} 8. Bh4 {[%emt 0:00:00] White has an edge.} O-O {[%emt 0:03:28][%cal Od7d5]} (8... Bxc3+ $2 9. Qxc3 O-O 10. O-O-O $18) 9. O-O-O {[%emt 0:00:00]} g5 {[%emt 0:05:48]} (9... d6 $11) 10. Bf2 $16 {[%emt 0:00:00]} Ng6 {[%emt 0:04:20]} (10... d6 $142) 11. Kb1 {[%emt 0:00:00]} d6 {[%emt 0:00:28]} 12. Qd2 {[%emt 0:00:00]} Be6 {[%emt 0:00:25] [#]} 13. Nge2 $1 {[%emt 0:00:00][%cal Bg1e2,Be2g3,Bg3h5][%mdl 32]} Nge5 {[%emt 0:14:06] [#]} (13... f5 $16 {was necessary.}) 14. Ng3 $1 $18 {[%emt 0:00:00]} b5 {[%emt 0:01:29]} (14... a5 $142 15. h4 f6) 15. Nh5 {[%emt 0:00:00]} (15. Nxb5 $6 Rb8 $18) (15. Bxb5 $6 Na5 $18) 15... Bh8 {[%emt 0:01:42]} 16. h4 {[%emt 0:00:00] aiming for hxg5.} (16. Nxb5 $6 Bc4 $18) (16. Bxb5 $6 Na5 $18) 16... Nc4 {[%emt 0:04:53]} 17. Bxc4 {[%emt 0:00:00]} bxc4 {[%emt 0:00:08]} 18. hxg5 {[%emt 0:00:00]} hxg5 {[%emt 0:02:04]} 19. f4 {[%emt 0:00:00][%cal Bf3f4,Bf4g5,Bg5f6][%mdl 32]} Bg4 {[%emt 0:02:20]} 20. fxg5 {[%emt 0:00:00][%cal Oc3d5] Strongly threatening Nd5!} Bxd1 {[%emt 0:01:33]} 21. Nxd1 {[%emt 0:00:00] Excellent horsemanship.} (21. Qxd1 Qxg5 (21... Bxc3 $2 22. Qg4 $18) 22. Bh4 Qg6 $18 (22... Qxg2 $2 23. Nf6+ Kg7 24. Rg1 $18)) 21... Rb8 {[%emt 0:01:03]} 22. Qf4 {[%emt 0:00:00] White threatens Nf6+ and mate.} f5 {[%emt 0:01:45]} 23. gxf6 {[%emt 0:00:00]} Kf7 {[%emt 0:12:03]} 24. Qf5 {[%emt 0:00:00]} Ne5 {[%emt 0:01:15]} 25. Bd4 {[%emt 0:00:00]} ({Weaker is} 25. Bh4 Qd7 $18) 25... Qc8 {[%emt 0:03:53]} 26. Qh7+ {[%emt 0:00:00] Black did not feel at home in the position after the opening.   Weighted Error Value: White=0.08 (flawless) /Black=0.63.  Mistake:       	---       	Black=4      Inaccurate:     	---       	Black=2      OK:         	White=9     	Black=6      Best:        	White=2     	---        Strong:       	White=2     	---} 1-0

[Event "Sardinia World Festival-A 2024"]
[Site "Orosei"]
[Date "2024.04.30"]
[Round "5.41"]
[White "Vagman, Roy"]
[Black "Chitre Arush"]
[Result "1/2-1/2"]
[ECO "C60"]
[WhiteElo "2357"]
[BlackElo "2210"]
[Annotator "TA"]
[PlyCount "70"]
[EventDate "2024.04.26"]
[EventType "swiss"]
[EventCountry "ITA"]
[SourceTitle "playchess.com"]
[Source "ChessBase"]
[SourceQuality "1"]
[TimeControl "40/5400+30:1800+30"]

{[%evp 11,70,25,34,17,31,32,24,30,37,31,41,40,49,37,68,19,2,0,0,0,0,-29,-27,-31,-37,-38,-34,-64,-56,-73,-63,-86,-27,-83,-70,-118,-113,-125,-8,-4,-7,-8,-3,-15,-13,-13,0,-8,-8,-16,-15,-16,-16,-31,-8,-8,-8,-11,-4,-68,-58]} 1. e4 {[%emt 0:00:02]} e5 {[%emt 0:03:11]} 2. Nf3 {[%emt 0:00:09]} Nc6 {[%emt 0:00:31]} 3. Bb5 {[%emt 0:00:10]} Nge7 {[%emt 0:00:18]} 4. Nc3 {[%emt 0:00:22][%cal Bb1c3,Bc3d5,Bd5f6][%mdl 32]} g6 {[%emt 0:00:27]} 5. d4 {[%emt 0:00:10]} exd4 {[%emt 0:00:05]} 6. Nd5 {[%emt 0:00:06]} Bg7 $1 {[%emt 0:00:09]} 7. Bg5 {[%emt 0:00:06] [#] Hoping for Bxc6.} h6 {[%emt 0:00:08]} 8. Bf6 {[%emt 0:00:04]} Bxf6 {[%emt 0:00:05]} 9. Nxf6+ {[%emt 0:00:05] White has an edge.} Kf8 {[%emt 0:00:03]} 10. Qd2 {[%emt 0:01:00][%cal Oe1c1][%mdl 1024] White has compensation.} d5 {[%emt 0:00:24]} 11. e5 {[%emt 0:09:35][%cal Oe1c1]} (11. Nxd5 {simplifies} Nxd5 12. Bxc6 Nf6 13. e5) 11... Kg7 {[%emt 0:05:40]} 12. O-O-O {[%emt 0:15:34][%cal Oh1e1]} (12. Nxd4 Nxe5 13. f4 Kxf6 $17) 12... a6 {[%emt 0:04:17]} (12... Nxe5 13. Nxe5 Nf5 (13... Kxf6 $2 14. Qxd4 Kg7 15. Nc6+ Kh7 16. Nxd8 $18) 14. Ne8+ Rxe8 15. Bxe8 Qxe8 16. Rhe1 $16) 13. Ba4 {[%emt 0:13:58] White has more active pieces.} (13. Bxc6 $14 {should be considered.} Nxc6 14. Nxd4 Nxe5 15. Nxd5 Nd3+ (15... Qxd5 $2 16. Nf5+ Bxf5 17. Qxd5 $18) 16. Qxd3 Qxd5 17. Qc3) 13... Be6 {[%emt 1:21:42]} 14. Rhe1 {[%emt 0:15:08][%cal Oa4c6]} b5 {[%emt 0:00:00]} 15. Bb3 {[%emt 0:00:10]} Ng8 {[%emt 0:00:00]} 16. Nxg8 {[%emt 0:09:16]} Rxg8 {[%emt 0:00:00]} 17. Nxd4 {[%emt 0:02:36]} Nxd4 {[%emt 0:00:00]} 18. Qxd4 {[%emt 0:00:04]} c6 {[%emt 0:00:00]} 19. h4 {[%emt 0:01:50]} Qe7 {[%emt 0:00:00]} 20. Qf4 {[%emt 0:04:33]} a5 {[%emt 0:00:00] [#] And now ...a4 would win.} 21. c3 {[%emt 0:01:05]} Rgb8 {[%emt 0:00:00]} (21... b4 $17) 22. Bc2 {[%emt 0:09:04]} (22. Rd3 $11 {remains equal.}) 22... b4 $17 {[%emt 0:00:00]} 23. h5 {[%emt 0:04:02]} bxc3 {[%emt 0:00:00]} ({And not} 23... gxh5 24. Rh1 Kf8 (24... bxc3 25. Rxh5 Kf8 26. bxc3 $14) 25. Ba4 $14 (25. Qxh6+ Ke8 $14) (25. Rxh5 bxc3 26. bxc3 Qa3+ 27. Kd2 d4 $16)) 24. bxc3 {[%emt 0:00:37]} Qg5 {[%emt 0:00:00]} ({Reject} 24... gxh5 $6 25. Rd3 $14) (24... Qa3+ $17 25. Kd2 d4 26. cxd4 Rb2 27. Qf6+ Kg8) 25. Qxg5 $11 {[%emt 0:00:19]} hxg5 {[%emt 0:00:00]} 26. hxg6 {[%emt 0:01:15]} fxg6 {[%emt 0:06:30]} 27. Re3 {[%emt 0:02:39]} Rf8 {[%emt 0:00:00]} 28. Rd2 {[%emt 0:02:09]} g4 {[%emt 0:00:00]} 29. f3 {[%emt 0:01:59]} Rf4 {[%emt 0:00:00]} 30. fxg4 {[%emt 0:01:05]} Rxg4 {[%emt 0:00:00]} 31. Rf2 {[%emt 0:01:15]} Rf8 {[%emt 0:00:00]} 32. Ref3 {[%emt 0:03:25]} Re8 {[%emt 0:00:00]} 33. Rf6 {[%emt 0:00:27]} c5 {[%emt 0:00:00]} 34. Kd2 {[%emt 0:00:53]} d4 {[%emt 0:00:00]} 35. R6f4 {[%emt 0:00:44]} (35. cxd4 $11 Rxd4+ 36. Kc1) 35... Rxf4 {[%emt 0:00:00] Weighted Error Value: White=0.16 (very precise) /Black=0.12 (very precise) .  Mistake:       	White=4     	Black=2      Inaccurate:     	White=2     	Black=1      OK:         	White=11    	Black=8      Best:        	---       	Black=2} 1/2-1/2

[Event "Sardinia World Festival-A 2024"]
[Site "Orosei"]
[Date "2024.04.30"]
[Round "5.42"]
[White "Shvedova, Alexandra"]
[Black "Gloeckler, Christian"]
[Result "1-0"]
[ECO "B55"]
[WhiteElo "2203"]
[BlackElo "2356"]
[Annotator "TA"]
[PlyCount "73"]
[EventDate "2024.04.26"]
[EventType "swiss"]
[EventCountry "ITA"]
[SourceTitle "playchess.com"]
[Source "ChessBase"]
[SourceQuality "1"]
[TimeControl "40/5400+30:1800+30"]

{[%evp 11,73,6,14,12,33,27,25,4,8,13,9,18,10,29,0,0,8,0,0,0,0,0,0,0,37,37,101,82,134,132,163,196,228,192,289,282,509,504,764,754,730,871,871,811,916,899,794,668,677,368,374,354,797,785,760,377,872,870,1039,475,29954,12820,5314,5143]} 1. e4 {[%emt 0:00:04]} c5 {[%emt 0:00:06]} 2. Nf3 {[%emt 0:00:13]} d6 {[%emt 0:00:09]} 3. d4 {[%emt 0:00:06]} cxd4 {[%emt 0:00:06]} 4. Nxd4 {[%emt 0:00:05]} Nf6 {[%emt 0:00:10]} 5. f3 {[%emt 0:00:27]} e5 {[%emt 1:32:29]} 6. Nb3 {[%emt 0:00:06]} d5 {[%emt 0:00:00]} 7. Bg5 $1 {[%emt 0:00:14]} d4 {[%emt 0:00:00]} 8. c3 {[%emt 0:00:10][%cal Rc3d4]} Nc6 {[%emt 0:00:00]} 9. cxd4 {[%emt 0:00:24] White has an edge.} Bb4+ $1 {[%emt 0:00:00]} 10. Bd2 {[%emt 0:00:10][%cal Bg5d2,Bd2b4,Bb4c5][%mdl 32]} Nxe4 {[%emt 0:00:00]} 11. Bxb4 {[%emt 0:00:05]} Qh4+ {[%emt 0:00:00]} 12. g3 {[%emt 0:00:03]} Nxg3 {[%emt 0:00:00]} 13. hxg3 {[%emt 0:00:03]} Qxh1 {[%emt 0:00:00]} 14. Bc5 {[%emt 0:00:04]} Bh3 {[%emt 0:00:00]} 15. N1d2 $36 {[%emt 0:00:07][%mdl 2048] Strongly threatening dxe5. White has the initiative.} O-O-O {[%emt 0:00:00][%cal Re5d4,Be8c8,Bc8b8,Bb8a8][%mdl 32]} 16. Qc2 {[%emt 0:00:12]} Bxf1 {[%emt 0:00:00]} 17. O-O-O {[%emt 0:00:10][%cal Oc5a7] Bxa7! would now be deadly.} Kb8 {[%emt 0:00:00][%cal Oh1h6]} 18. Rxf1 {[%emt 0:01:34]} Qh3 {[%emt 0:00:00]} (18... Qh5 $1 $14) 19. dxe5 $1 $16 {[%emt 0:19:04] Black is now going downhill.} Nxe5 {[%emt 0:00:00] [#]} ({Better is} 19... Rhe8) 20. Bxa7+ $1 {[%emt 0:04:36][%mdl 512]} Ka8 {[%emt 0:00:00] [#] Threatens to win with ...Rxd2.} (20... Kxa7 21. Qc5+) 21. Kb1 $1 {[%emt 0:13:20] Black must now prevent Be3.} Qxg3 {[%emt 0:00:00]} (21... Rc8 22. Qe4) 22. Bd4 {[%emt 0:18:45] Ne4 is the strong threat.} Nc6 {[%emt 0:00:00] [#]} (22... Rhe8 {was necessary.} 23. Qxh7 Qf4) 23. Bb6 $1 $18 {[%emt 0:03:15]} Rde8 $2 {[%emt 0:00:00]} (23... Nb4 24. Qe4 Qg6) 24. Ne4 {[%emt 0:02:18]} Qf4 {[%emt 0:00:00]} (24... Nb4 $142 25. Nxg3 Nxc2 26. Kxc2 h5) 25. Nbc5 {[%emt 0:04:46] Qa4+ would kill now.} Re7 {[%emt 0:00:00]} 26. Nd3 {[%emt 0:10:40] Excellent horsemanship.} Qf5 {[%emt 0:00:00]} 27. Qa4+ {[%emt 0:09:07]} Kb8 {[%emt 0:00:00]} 28. Nb4 {[%emt 0:01:22]} Rc8 {[%emt 0:00:00]} 29. Ka1 {[%emt 0:05:45]} Qf4 {[%emt 0:00:00] Repels Nd6} 30. Nd5 {[%emt 0:04:18]} Rxe4 {[%emt 0:02:05]} 31. Qxe4 {[%emt 0:00:05]} Qd6 {[%emt 0:00:13]} (31... Qxe4 32. fxe4 Ne5) 32. Rc1 {[%emt 0:01:21]} h6 {[%emt 0:02:59]} 33. Ne3 {[%emt 0:00:31]} (33. Rd1 $142) 33... g6 $2 {[%emt 0:01:12]} (33... Ne7 34. Rxc8+ (34. Nc4 Qxb6 35. Qxe7 Rxc4 $11) 34... Nxc8) 34. Nc4 {[%emt 0:01:29]} Qf6 {[%emt 0:00:59]} 35. Na5 {[%emt 0:00:35]} (35. Bf2 $142 {White wants to mate with Bg3+.} Rd8 36. Bg3+ Ka7 37. Qe3+ Nd4 38. Qa3+ (38. Qxh6 Qxf3 39. Bc7 Nf5 $18) (38. Be5 Qc6 39. Bxd4+ Rxd4 40. Qxd4+ b6 41. Rc3 Qe6 42. Ra3+ Kb7 43. Nd6+ Kc6) 38... Qa6 39. Qc5+ b6 40. Qc7+ Qb7 41. Qxd8) 35... Qg5 {[%emt 0:01:19]} (35... Qe6 $18 36. Nxc6+ (36. Qxe6 fxe6 37. Nxc6+ bxc6 $18) 36... Rxc6 37. Qf4+ Kc8 38. Qxh6 Kd7) 36. Nxc6+ {[%emt 0:00:30]} bxc6 {[%emt 0:00:08]} 37. Be3 {[%emt 0:00:16] Weighted Error Value: White=0.65/Black=0.57.  Mistake:       	---       	Black=6      Inaccurate:     	---       	Black=1      OK:         	White=8     	Black=7      Best:        	White=3     	Black=3      Strong:       	White=2     	Black=1      Brilliant:      	White=1     	---} 1-0